bitfinex/quotes_ETHUSD_20260312
["timestamp","ask_amount","ask_price","bid_price","bid_amount"]
[1773325293667,1.20696007,2071.4,2070.2,0.49011668]
[1773325294229,1.20696007,2071.4,2070.5,0.49011668]
[1773325294684,1.20696007,2071.4,2070.1,6.65607625]
[1773325294889,1.20696007,2071.4,2070.3,9.451318]
[1773325295066,1.20696007,2071.4,2070.4,2.82467614]
[1773325295382,1.20679667,2071.6,2070.5,1.20743781]
[1773325295587,1.20679667,2071.6,2070.5,1.69755449]
[1773325295883,4.8267424,2071.8,2070.6,1.484]
[1773325296047,4.8267424,2071.8,2070.7,0.49011668]
[1773325296867,0.49477779,2071.6,2070.1,2.62372899]
[1773325297067,0.49477779,2071.6,2070.2,4.83021784]
[1773325297269,1.532,2071.5,2070.3,0.02415108]
[1773325297567,1.20691319,2071.4,2070.3,1.20755446]
[1773325298094,7.36246866,2071.7,2070.4,0.49011668]
[1773325298095,4.82741974,2071.6,2070.4,0.49011668]
[1773325298245,4.82741974,2071.6,2070.3,1.20755446]
[1773325298246,0.49477779,2071.5,2070.3,1.20755446]
[1773325298574,0.49477779,2071.5,2070.2,1.20757739]
[1773325298739,0.49477779,2071.5,2070.2,1.69769407]
[1773325298943,0.49477779,2071.5,2070.3,0.49011668]
[1773325299142,4.82741974,2071.6,2070.4,0.49011668]
[1773325299143,1.20679667,2071.6,2070.4,0.49011668]
[1773325299449,1.20668018,2071.8,2070.7,1.20732119]
[1773325299649,1.20668018,2071.8,2070.3,1.20749613]
[1773325299650,0.49477779,2071.7,2070.3,1.20749613]
[1773325300941,0.49477779,2071.4,2070.1,2.62372899]
[1773325301256,0.49477779,2071.4,2069.6,1.484]
[1773325301257,0.49477779,2070.8,2069.4,1.69816225]
[1773325301454,1.70215729,2070.6,2069.3,0.065536]
[1773325301653,1.2073795,2070.6,2069.4,2.82467614]
[1773325301843,1.2073795,2070.6,2069.4,0.49011668]
[1773325302052,1.2073795,2070.6,2069.2,4.83231854]
[1773325302053,1.70215729,2070.6,2069.2,4.83231854]
[1773325302599,0.49477779,2070.5,2069.2,4.83231854]
[1773325302902,2.02677779,2070.5,2069.2,4.83231854]
[1773325303213,0.49477779,2070.4,2069.2,4.83231854]
[1773325303366,0.49477779,2070.4,2069.0,1.69938743]
[1773325303568,7.26638301,2070.1,2069.0,0.001]
[1773325303884,0.49422301,2070.1,2069.0,0.001]
[1773325304272,0.49422301,2069.8,2069.0,0.001]
[1773325304462,1.532,2069.7,2069.0,0.001]
[1773325304893,0.49422301,2069.7,2069.0,1.20930696]
[1773325305073,0.49422301,2069.7,2069.0,0.001]
[1773325305395,0.49422301,2069.7,2069.4,0.001]
[1773325305696,1.20772946,2070.0,2069.4,0.001]
[1773325306067,1.20749613,2070.4,2069.4,0.001]
[1773325306565,1.20749613,2070.4,2069.4,0.48215724]
[1773325306887,1.20726289,2070.8,2069.5,14.24689024]
[1773325307092,1.20726289,2070.8,2069.5,0.48115724]
[1773325307702,3.80076014,2070.8,2069.6,1.20796289]
[1773325308066,4.29498315,2070.8,2069.6,1.20796289]
[1773325308267,0.49422301,2070.7,2069.6,1.20796289]
[1773325308501,0.49422301,2070.7,2069.5,1.20798488]
[1773325308966,0.49422301,2070.7,2069.4,1.20905944]
[1773325309166,2.59349725,2070.5,2069.4,1.20905944]
[1773325309799,1.20749613,2070.4,2069.4,0.001]
[1773325309966,1.20749613,2070.4,2069.4,2.59449725]
[1773325310880,1.20749613,2070.4,2069.5,0.04832085]
[1773325311268,1.20749613,2070.4,2069.4,2.59449725]
[1773325311799,1.532,2070.8,2069.4,2.59449725]
[1773325311800,5.28972527,2071.1,2069.7,2.59349725]
[1773325312099,1.2071463,2071.0,2069.7,3.09128269]
[1773325312508,2.59349725,2070.7,2069.4,3.80256033]
[1773325312799,1.531,2070.7,2069.5,0.54610629]
[1773325312998,1.2071463,2071.0,2069.5,0.54610629]
[1773325313180,1.2071463,2071.0,2069.8,2.59349725]
[1773325313499,1.2071463,2071.0,2069.6,13.967972]
[1773325313705,1.2071463,2071.0,2069.9,1.20778781]
[1773325314024,4.5857411,2070.9,2069.5,1.20798098]
[1773325314175,1.531,2070.8,2069.5,1.20798098]
[1773325314375,1.67032401,2071.2,2070.0,2.59349725]
[1773325314591,0.46124385,2071.1,2069.7,3.09128269]
[1773325314797,3.0547411,2071.0,2069.7,0.49778544]
[1773325314991,0.46124385,2070.9,2069.7,0.49778544]
[1773325315394,0.46124385,2070.9,2069.8,0.04831384]
[1773325315601,0.46124385,2070.9,2069.7,0.49778544]
[1773325315801,1.20726289,2070.8,2069.8,1.20784616]
[1773325316002,1.20726289,2070.8,2069.9,0.04831151]
[1773325316389,1.20726289,2070.8,2069.8,1.20784616]
[1773325316971,1.20724288,2070.9,2069.8,1.20784616]
[1773325317170,1.20724288,2070.9,2070.0,2.59349725]
[1773325317375,1.20708802,2071.1,2070.0,2.59349725]
[1773325317705,1.20907193,2071.2,2070.1,4.38824544]
[1773325317907,0.002,2071.2,2070.2,1.70535983]
[1773325318201,2.59349725,2071.0,2069.8,1.70558798]
[1773325318585,2.59349725,2070.7,2069.5,4.07449725]
[1773325318787,0.46124385,2070.9,2069.6,1.20791898]
[1773325318788,3.0547411,2070.9,2069.6,1.20791898]
[1773325319204,4.5837411,2070.9,2069.6,1.20791898]
[1773325320208,1.20726289,2070.8,2069.6,1.20791898]
[1773325320409,1.20722716,2070.9,2069.8,0.49778544]
[1773325320956,0.002,2070.7,2069.8,0.49778544]
[1773325321987,0.002,2070.9,2070.2,1.70539823]
[1773325322187,0.002,2070.9,2070.3,0.04830217]
[1773325322389,0.002,2070.9,2070.3,2.59349725]
[1773325322589,0.002,2070.9,2070.2,1.20761279]
[1773325323000,0.002,2070.9,2070.3,0.04830217]
[1773325323408,0.002,2070.9,2070.2,1.20761279]
[1773325323707,0.002,2070.9,2070.2,1.70539823]
[1773325324012,0.002,2070.9,2070.4,1.20749613]
[1773325324811,0.002,2070.9,2070.4,1.70528157]
[1773325325009,0.002,2070.9,2070.5,2.59349725]
[1773325325199,0.002,2070.9,2070.5,3.1395802]
[1773325325512,0.002,2071.2,2070.8,2.59349725]
[1773325325809,0.002,2071.2,2070.8,0.49778544]
[1773325326111,1.20644725,2072.2,2070.9,1.70499003]
[1773325326297,1.20644725,2072.2,2070.5,3.09128269]
[1773325326298,3.0547411,2071.9,2070.5,3.09128269]
[1773325326611,0.46124385,2071.9,2070.8,1.478]
[1773325326906,0.46124385,2071.9,2070.8,4.07149725]
[1773325327278,0.002,2072.1,2071.2,0.49778544]
[1773325327479,4.82778901,2072.3,2071.5,3.09128269]
[1773325327480,0.002,2072.3,2071.5,3.09128269]
[1773325327691,0.002,2072.3,2071.6,1.97478544]
[1773325327893,0.002,2072.6,2071.9,0.49778544]
[1773325328229,0.002,2072.6,2071.6,1.20679667]
[1773325329210,0.002,2072.6,2071.6,1.70458211]
[1773325329521,0.002,2072.6,2071.8,0.7]
[1773325330016,0.002,2072.6,2071.9,1.20662194]
[1773325330483,0.002,2072.6,2071.8,1.90668014]
[1773325330681,0.002,2072.6,2071.6,2.68277073]
[1773325331509,0.002,2072.6,2071.6,3.18055617]
[1773325331885,0.002,2072.6,2071.6,1.476]
[1773325332086,0.46124385,2072.3,2071.1,1.20706334]
[1773325332287,0.46124385,2072.3,2071.0,0.24340897]
[1773325332288,0.46124385,2072.1,2071.0,1.45054039]
[1773325332488,0.46124385,2072.1,2070.8,0.49778544]
[1773325332793,0.46124385,2072.0,2070.8,0.49778544]
[1773325333402,3.0547411,2072.4,2071.1,2.59349725]
[1773325333599,0.46124385,2072.3,2070.9,4.56628269]
[1773325333922,0.46124385,2072.0,2070.7,0.97073594]
[1773325334095,0.46124385,2071.7,2070.2,2.59349725]
[1773325334301,0.46124385,2071.7,2070.3,1.475]
[1773325334496,0.46124385,2071.7,2070.5,2.59349725]
[1773325334702,2.50038313,2071.9,2070.6,0.49778544]
[1773325334897,2.50038313,2071.9,2070.8,2.59349725]
[1773325335401,0.002,2072.1,2070.9,0.49778544]
[1773325335806,0.46324385,2072.1,2070.8,1.474]
[1773325336021,0.46324385,2072.1,2070.9,0.49778544]
[1773325336319,0.002,2072.1,2070.9,0.49778544]
[1773325337621,0.002,2072.1,2070.8,1.474]
[1773325337622,3.0567411,2072.1,2070.8,1.474]
[1773325338203,0.002,2072.1,2070.9,3.09128269]
[1773325338406,0.002,2072.1,2071.2,2.59349725]
[1773325338724,0.002,2072.1,2071.2,3.09128269]
[1773325338900,0.002,2072.1,2071.3,0.49778544]
[1773325339302,0.002,2072.3,2071.6,0.49778544]
[1773325339915,0.002,2072.3,2071.6,1.45067209]
[1773325340622,0.002,2072.3,2071.6,0.95288665]
[1773325340929,0.002,2072.3,2071.6,0.46585636]
[1773325342200,0.002,2072.3,2071.3,0.21502099]
[1773325342401,0.002,2072.3,2071.4,2.502544]
[1773325342610,0.002,2072.3,2071.9,2.58807688]
[1773325343337,0.002,2072.3,2071.7,0.46585636]
[1773325343634,0.002,2072.3,2071.8,1.20668018]
[1773325344903,0.002,2072.3,2071.7,1.20669481]
[1773325345626,0.002,2072.3,2071.6,4.82709061]
[1773325345834,0.45665091,2072.3,2071.1,0.46585636]
[1773325346012,0.45665091,2072.3,2070.8,1.20720459]
[1773325346211,0.45465091,2072.0,2070.7,1.67316715]
[1773325346608,0.45465091,2072.0,2070.7,3.14116715]
[1773325347012,0.45465091,2072.0,2070.9,2.58807688]
[1773325347226,0.45465091,2072.0,2070.9,5.244073]
[1773325347433,0.45465091,2072.0,2070.9,2.271293]
[1773325347744,1.20838903,2072.3,2071.3,1.20697146]
[1773325347900,0.45465091,2072.2,2071.2,1.467]
[1773325348103,0.45465091,2072.2,2071.1,4.82817328]
[1773325348633,0.45465091,2072.2,2071.1,0.001]
[1773325348634,0.45465091,2072.1,2071.1,0.001]
[1773325348842,0.45665091,2072.1,2071.1,0.001]
[1773325349002,0.45665091,2072.1,2071.1,0.01122577]
[1773325349208,0.002,2072.1,2071.4,2.58807688]
[1773325349834,0.002,2072.1,2071.5,1.20685493]
[1773325350143,0.002,2072.1,2071.5,1.67271129]
[1773325350441,1.20821441,2072.6,2071.5,1.67271129]
[1773325350850,1.66286532,2072.6,2071.6,1.466]
[1773325351143,1.20821441,2072.6,2071.6,4.51993324]
[1773325351321,0.002,2072.6,2071.7,0.51412589]
[1773325351930,0.002,2072.6,2071.8,1.20668018]
[1773325352138,0.002,2072.6,2071.9,0.04826487]
[1773325352637,0.002,2072.6,2071.8,1.20668018]
[1773325352838,0.002,2072.6,2071.9,0.04826285]
[1773325353409,0.002,2072.6,2071.9,2.63633973]
[1773325354440,0.002,2072.6,2072.0,1.2065637]
[1773325354622,0.002,2072.6,2072.1,0.04825863]
[1773325355327,0.002,2072.6,2071.5,1.20685493]
[1773325355621,0.45665091,2072.6,2071.5,1.464]
[1773325356121,2.87192299,2072.6,2071.7,0.46585636]
[1773325356315,0.002,2072.6,2071.8,1.67253654]
[1773325356518,0.002,2072.6,2071.9,0.04826398]
[1773325357210,0.002,2072.6,2071.8,0.04826398]
[1773325357817,0.45665091,2072.6,2071.4,1.528536]
[1773325358249,0.002,2072.6,2071.5,0.46585636]
[1773325358548,0.002,2072.6,2071.8,0.46585636]
[1773325359937,0.002,2072.6,2071.9,0.04826398]
[1773325360459,0.002,2072.6,2071.8,5.72359185]
[1773325360746,0.002,2072.6,2071.7,1.463]
[1773325361445,0.002,2072.6,2071.5,1.67271129]
[1773325361652,2.58807688,2072.4,2071.4,1.463]
[1773325361854,2.87525167,2072.3,2071.4,2.66990161]
[1773325362355,2.58807688,2072.4,2071.1,5.29517153]
[1773325362538,2.58807688,2072.4,2071.3,1.462]
[1773325362539,1.20638903,2072.3,2071.3,1.462]
[1773325362747,1.20638903,2072.3,2071.8,0.001]
[1773325362920,0.002,2072.4,2071.8,2.58907688]
[1773325363254,1.20833301,2072.4,2071.8,0.001]
[1773325364516,0.002,2072.4,2071.8,0.001]
[1773325365052,0.002,2072.4,2071.8,0.49233886]
[1773325365523,0.002,2072.4,2071.8,0.001]
[1773325365725,0.002,2072.4,2071.9,1.462]
[1773325366616,0.002,2072.4,2071.9,2.66858592]
[1773325367251,0.002,2072.4,2071.8,0.001]
[1773325367554,0.002,2072.4,2071.5,0.001]
[1773325367555,0.48439978,2072.2,2071.5,0.001]
[1773325367852,3.36829039,2072.2,2071.5,0.001]
[1773325368149,2.88389061,2072.1,2071.5,0.001]
[1773325368653,0.48439978,2072.2,2071.5,0.001]
[1773325368951,1.20650547,2072.1,2071.5,0.001]
[1773325370530,1.20835809,2072.4,2071.5,0.001]
[1773325370738,0.002,2072.4,2071.7,1.20673842]
[1773325371235,0.002,2072.4,2071.7,1.69727485]
[1773325371440,0.002,2072.4,2071.8,1.462]
[1773325371750,0.002,2072.4,2071.8,1.95253643]
[1773325372141,0.002,2072.4,2071.9,0.49053643]
[1773325372346,0.002,2072.6,2071.9,0.49053643]
[1773325372745,0.002,2072.6,2072.0,1.462]
[1773325372938,0.002,2072.6,2072.1,1.20650547]
[1773325373958,0.002,2072.6,2071.8,1.462]
[1773325374539,0.002,2072.6,2071.8,1.95253643]
[1773325375058,0.002,2072.6,2071.9,1.69715837]
[1773325375734,0.002,2072.6,2072.0,1.462]
[1773325376341,0.002,2072.4,2071.9,1.69715837]
[1773325377969,0.002,2072.4,2072.0,1.462]
[1773325378541,0.002,2072.4,2072.0,4.05007688]
[1773325378957,0.002,2072.4,2072.1,1.20650547]
[1773325379156,0.002,2072.4,2072.1,2.66950547]
[1773325380471,0.002,2072.9,2072.4,2.58807688]
[1773325380651,0.002,2072.9,2072.1,1.6970419]
[1773325380850,0.002,2072.9,2071.9,4.82625482]
[1773325381049,1.66789293,2072.9,2072.2,1.20644725]
[1773325381477,0.45981208,2072.8,2072.0,1.464]
[1773325382374,1.20806937,2072.9,2072.1,1.464]
[1773325382573,0.002,2072.9,2072.2,0.49053643]
[1773325382869,0.002,2072.9,2072.0,0.065536]
[1773325382870,1.20803989,2072.9,2072.0,0.065536]
[1773325383070,1.20803989,2072.9,2071.9,1.20662194]
[1773325383071,0.002,2072.9,2072.1,1.465]
[1773325383270,0.002,2072.9,2072.2,0.49053643]
[1773325383977,0.46181208,2072.9,2072.3,0.03292395]
[1773325384472,0.002,2072.9,2072.3,0.03292395]
[1773325384647,0.002,2072.9,2072.2,1.465]
[1773325384851,0.002,2072.9,2072.2,0.49053643]
[1773325385170,0.002,2072.9,2072.4,1.20633082]
[1773325386277,0.45981208,2073.8,2072.7,3.303178]
[1773325386453,0.45981208,2073.8,2072.8,1.466]
[1773325387067,1.66536511,2073.8,2072.9,1.20603984]
[1773325387276,0.45981208,2073.7,2072.6,0.49053643]
[1773325387477,0.45981208,2073.7,2072.8,1.466]
[1773325388055,1.20555303,2073.8,2072.8,1.95653643]
[1773325388250,1.20555303,2073.8,2072.9,3.07861331]
[1773325388454,1.66536511,2073.8,2073.0,1.467]
[1773325389406,1.20555303,2073.8,2073.1,1.20592349]
[1773325390371,1.20522585,2074.3,2073.3,3.07861331]
[1773325390809,1.20522585,2074.3,2073.6,2.58807688]
[1773325391103,1.20487734,2074.9,2073.9,2.58807688]
[1773325391309,5.2791142,2075.0,2074.0,1.20540019]
[1773325391310,1.66467804,2075.0,2074.0,1.20540019]
[1773325391518,0.45981208,2075.3,2074.2,2.58807688]
[1773325391812,1.20458706,2075.4,2074.3,0.49053643]
[1773325392348,4.81743215,2075.8,2074.7,2.58807688]
[1773325392479,0.45981208,2075.6,2074.4,1.467]
[1773325392677,2.58807688,2075.5,2074.4,1.467]
[1773325392889,3.04788896,2075.5,2074.5,1.467]
[1773325393284,1.20458706,2075.4,2074.5,2.67210737]
[1773325393680,0.45981208,2075.3,2074.2,1.20528396]
[1773325393895,0.45981208,2075.3,2074.3,1.467]
[1773325394291,0.45981208,2075.3,2074.2,3.79336084]
[1773325394697,0.45981208,2075.3,2074.3,1.467]
[1773325395101,1.20458706,2075.4,2074.1,5.27745321]
[1773325395102,3.04788896,2075.2,2074.1,5.27745321]
[1773325395416,1.20476121,2075.1,2074.1,2.67233339]
[1773325395908,1.20476121,2075.1,2074.2,0.49053643]
[1773325396081,1.20476121,2075.1,2074.2,3.07861331]
[1773325396283,1.20452902,2075.5,2074.3,0.49053643]
[1773325396479,0.45981208,2075.4,2074.1,1.20533339]
[1773325396714,0.45981208,2075.2,2073.9,1.467]
[1773325396912,0.45981208,2075.2,2074.3,2.58807688]
[1773325397105,0.45981208,2075.2,2074.0,3.07861331]
[1773325397306,0.45981208,2075.0,2073.8,1.20545873]
[1773325397619,0.45981208,2075.0,2073.8,1.467]
[1773325398130,3.79283809,2075.1,2073.6,7.4105103]
[1773325398131,0.45981208,2074.7,2073.6,1.20558789]
[1773325398333,2.58807688,2074.8,2073.5,1.467]
[1773325398334,0.45981208,2074.4,2073.5,1.467]
[1773325398619,0.45981208,2074.4,2073.3,1.69630556]
[1773325398917,0.45981208,2074.3,2073.2,1.467]
[1773325399288,1.20528396,2074.2,2073.0,7.90230729]
[1773325399489,1.66509604,2074.2,2073.1,2.67288744]
[1773325400106,1.20528396,2074.2,2073.3,2.58807688]
[1773325400397,1.20510966,2074.5,2073.4,0.48805867]
[1773325401300,0.45124101,2074.2,2073.1,1.20588744]
[1773325401498,0.45124101,2074.2,2072.9,2.67403984]
[1773325401499,2.58807688,2074.1,2072.9,2.67403984]
[1773325401726,1.20522585,2074.3,2073.1,0.48805867]
[1773325402102,0.002,2074.0,2073.2,1.468]
[1773325403026,0.002,2074.0,2072.9,1.20603984]
[1773325403195,0.45324101,2074.0,2073.0,1.468]
[1773325403398,2.58512813,2073.8,2072.9,1.468]
[1773325403696,1.65669932,2073.9,2072.9,1.468]
[1773325403895,0.45124101,2073.8,2072.9,1.468]
[1773325404095,0.45124101,2073.8,2072.8,1.468]
[1773325404523,0.45124101,2073.5,2072.5,1.468]
[1773325404828,1.20545831,2073.9,2072.8,0.48805867]
[1773325405533,0.002,2074.0,2073.1,0.48805867]
[1773325405748,0.002,2074.0,2073.2,1.468]
[1773325405900,0.45124101,2073.9,2072.9,1.468]
[1773325406401,0.002,2074.0,2072.9,1.468]
[1773325406602,0.002,2074.0,2073.0,1.468]
[1773325407218,0.45324101,2074.0,2073.0,1.468]
[1773325407403,1.20545831,2073.9,2073.1,1.468]
[1773325407713,1.65669932,2073.9,2073.1,1.468]
[1773325408597,1.20545831,2073.9,2073.1,1.468]
[1773325409324,0.002,2074.0,2073.1,1.468]
[1773325409525,0.002,2074.0,2073.2,4.27905212]
[1773325409724,0.002,2074.0,2073.2,1.69392399]
[1773325409929,0.002,2074.0,2073.2,1.20586532]
[1773325410128,0.002,2074.0,2073.0,4.82383663]
[1773325410423,0.45324101,2074.0,2073.0,6.29083663]
[1773325411708,0.002,2074.0,2073.1,0.48805867]
[1773325411913,1.20741205,2074.0,2073.2,1.467]
[1773325412109,1.20741205,2074.0,2073.1,0.48805867]
[1773325412426,1.65865306,2074.0,2073.2,1.467]
[1773325413237,1.65865306,2074.0,2073.3,1.467]
[1773325413438,0.002,2074.0,2073.3,4.5401868]
[1773325413636,0.002,2074.0,2073.4,1.20574901]
[1773325413934,0.002,2074.0,2073.3,1.20577139]
[1773325414237,0.002,2074.0,2073.3,2.67277139]
[1773325414441,0.002,2074.0,2073.3,1.467]
[1773325414947,0.002,2074.0,2073.3,4.5401868]
[1773325415452,0.002,2074.5,2074.4,3.034369]
[1773325415636,1.20481927,2075.0,2074.7,3.032369]
[1773325415837,0.45124101,2074.9,2073.4,0.48805867]
[1773325416044,3.03636914,2074.7,2073.6,0.48805867]
[1773325416355,1.20481927,2075.0,2073.5,1.51522763]
[1773325416356,0.45124101,2074.6,2073.5,1.51522763]
[1773325416650,0.45124101,2074.6,2073.5,1.467]
[1773325416953,0.45124101,2074.6,2073.5,0.48805867]
[1773325417333,0.45124101,2074.6,2073.6,1.467]
[1773325417758,2.58512813,2074.2,2073.2,1.20682494]
[1773325417926,2.58512813,2074.2,2073.4,1.467]
[1773325418126,0.45124101,2074.4,2073.4,1.467]
[1773325418528,0.45124101,2074.4,2073.2,1.20682494]
[1773325418727,1.20510966,2074.5,2073.4,0.48805867]
[1773325418944,1.20510966,2074.5,2073.5,0.04822763]
[1773325419523,1.20510966,2074.5,2073.4,0.48805867]
[1773325419724,4.82043865,2074.7,2073.5,1.20569086]
[1773325419938,4.82043865,2074.7,2073.6,1.466]
[1773325419939,5.27167966,2074.7,2073.6,1.466]
[1773325420435,2.58512813,2074.3,2073.5,1.466]
[1773325420747,3.03636914,2074.3,2073.5,1.466]
[1773325421052,0.45124101,2074.3,2073.5,1.466]
[1773325421852,1.20528396,2074.2,2073.2,0.001]
[1773325422056,1.20528396,2074.2,2073.3,1.466]
[1773325422260,1.20528396,2074.2,2073.2,0.001]
[1773325422435,1.20528396,2074.2,2073.3,1.466]
[1773325422648,4.82043865,2074.7,2073.3,1.466]
[1773325422649,4.82021033,2074.6,2073.4,0.48805867]
[1773325423027,4.82021033,2074.6,2073.4,3.0731868]
[1773325423243,0.47661212,2074.5,2073.5,1.466]
[1773325423953,1.20516775,2074.4,2074.0,3.036369]
[1773325424136,1.20516775,2074.4,2073.5,2.67164278]
[1773325424337,1.20516775,2074.4,2073.4,1.69375017]
[1773325424538,1.20516775,2074.4,2073.5,1.465]
[1773325424733,1.20516775,2074.4,2073.4,1.69375017]
[1773325424734,1.68177987,2074.4,2073.4,1.69375017]
[1773325424955,4.266908,2074.4,2073.5,1.465]
[1773325425261,1.68177987,2074.4,2073.5,1.465]
[1773325426051,1.68177987,2074.4,2073.6,1.20563271]
[1773325426259,1.20516775,2074.4,2073.6,1.20563271]
[1773325426654,1.20516775,2074.4,2074.0,1.765116]
[1773325427063,1.20516775,2074.4,2073.6,1.20563271]
[1773325427239,1.20516775,2074.4,2073.5,1.465]
[1773325427440,1.68177987,2074.4,2073.5,2.67068984]
[1773325427867,0.002,2074.2,2073.5,1.465]
[1773325428234,0.002,2074.2,2073.5,2.67067416]
[1773325428768,0.002,2074.2,2073.5,1.20567416]
[1773325428937,0.002,2074.2,2073.5,2.67067416]
[1773325429137,0.002,2074.2,2073.5,3.1508571]
[1773325430054,0.002,2074.2,2073.5,2.67067416]
[1773325430248,0.002,2074.2,2073.7,1.20557457]
[1773325430452,0.002,2074.2,2073.6,1.68576765]
[1773325431942,0.002,2074.2,2073.7,0.4559139]
[1773325432254,0.002,2074.2,2073.8,1.20551644]
[1773325432455,0.002,2074.2,2073.7,0.4559139]
[1773325432669,0.002,2074.2,2073.8,1.464]
[1773325432971,0.002,2074.2,2073.7,1.464]
[1773325434343,0.002,2074.2,2073.4,1.20670697]
[1773325434541,0.002,2074.2,2073.5,1.464]
[1773325435364,0.002,2074.2,2073.6,1.464]
[1773325435765,0.002,2074.2,2073.4,0.001]
[1773325435970,0.48603409,2074.2,2073.4,0.001]
[1773325436186,0.48603409,2074.2,2073.5,1.464]
[1773325436480,1.20545831,2073.9,2073.4,1.465]
[1773325436850,1.20545831,2073.9,2073.2,0.001]
[1773325437087,0.48403409,2073.8,2073.2,0.001]
[1773325437244,3.69128844,2073.9,2073.2,0.001]
[1773325437653,0.48403409,2073.8,2073.2,0.001]
[1773325438081,3.69128844,2073.9,2073.0,0.001]
[1773325438082,0.48403409,2073.6,2073.0,0.001]
[1773325438393,1.20586532,2073.2,2072.7,0.001]
[1773325438553,1.20586532,2073.2,2072.4,0.001]
[1773325438760,1.68989941,2073.2,2072.4,0.001]
[1773325439681,4.8226657,2073.6,2072.5,0.4559139]
[1773325440174,4.8226657,2073.6,2072.4,2.58612813]
[1773325440175,1.20551644,2073.8,2072.8,0.4559139]
[1773325440367,1.20551644,2073.8,2073.0,1.66189556]
[1773325440566,1.20551644,2073.8,2073.0,3.12589556]
[1773325440766,3.79064457,2073.8,2072.7,1.20611201]
[1773325440962,1.68955053,2073.8,2072.8,1.463]
[1773325441264,1.20551644,2073.8,2072.9,0.4559139]
[1773325441473,3.7904702,2074.1,2073.1,0.4559139]
[1773325441694,4.27450429,2074.1,2073.0,1.463]
[1773325442003,3.06916222,2073.8,2072.6,1.463]
[1773325442177,3.06916222,2073.5,2072.4,0.001]
[1773325442514,1.20580716,2073.3,2072.4,0.001]
[1773325442718,2.58512813,2073.1,2072.4,0.001]
[1773325442873,3.06916222,2073.1,2072.4,0.001]
[1773325443377,1.20580716,2073.3,2072.4,0.001]
[1773325443770,0.48403409,2073.2,2072.9,0.001]
[1773325443986,2.58512813,2073.1,2072.4,0.001]
[1773325444195,2.58512813,2073.1,2072.6,0.001]
[1773325444590,1.20598166,2073.0,2072.6,0.001]
[1773325444975,1.69001575,2073.0,2072.4,0.001]
[1773325446198,2.58512813,2072.8,2072.4,0.001]
[1773325446507,1.20615622,2072.7,2072.4,0.001]
[1773325447104,2.58512813,2072.5,2072.1,0.001]
[1773325447679,1.69019031,2072.7,2072.1,0.001]
[1773325447885,1.20615622,2072.7,2072.1,0.001]
[1773325448615,3.06916222,2072.7,2072.1,0.001]
[1773325449719,0.48403409,2072.7,2072.1,0.001]
[1773325450300,0.24587513,2072.8,2072.1,0.001]
[1773325450485,4.82462488,2072.9,2072.4,2.0]
[1773325451098,4.82462488,2072.9,2072.1,0.001]
[1773325451298,2.58512813,2072.6,2072.1,0.001]
[1773325451722,5.24197073,2072.9,2072.1,0.001]
[1773325452020,2.58512813,2072.7,2072.1,0.001]
[1773325452224,4.82462488,2072.9,2072.1,0.001]
[1773325452424,4.82462488,2072.9,2072.1,1.7116743]
[1773325452631,5.17025626,2073.6,2072.1,1.7116743]
[1773325452632,2.58512813,2073.3,2072.3,1.66230293]
[1773325453218,2.58512813,2073.3,2072.3,0.4559139]
[1773325453421,3.00247398,2073.3,2072.3,0.4559139]
[1773325453609,3.00247398,2073.0,2072.1,0.001]
[1773325453810,2.58512813,2072.7,2072.1,0.001]
[1773325454221,2.58512813,2072.7,2071.7,1.20773261]
[1773325454222,0.48403409,2072.6,2071.7,1.20773261]
[1773325454424,2.58512813,2072.4,2071.7,0.001]
[1773325454723,1.20638903,2072.3,2071.7,0.001]
[1773325456504,1.20638903,2072.3,2072.1,0.001]
[1773325456910,1.20638903,2072.3,2071.9,0.001]
[1773325457826,1.1192588,2072.3,2071.9,0.001]
[1773325458124,1.20619078,2072.7,2071.9,0.4569139]
[1773325458296,1.20619078,2072.7,2072.0,0.50417644]
[1773325458497,1.20619078,2072.7,2072.0,0.4559139]
[1773325459240,0.002,2072.8,2072.1,1.20650547]
[1773325460239,0.002,2072.8,2072.2,0.46422742]
[1773325461039,0.002,2072.8,2072.1,1.20650547]
[1773325461336,0.002,2072.8,2072.0,2.6615637]
[1773325462229,0.002,2072.8,2072.0,2.70982624]
[1773325462432,0.002,2072.8,2072.0,3.17405366]
[1773325462622,0.002,2072.8,2072.1,0.46422742]
[1773325463212,0.002,2072.8,2072.2,1.20644725]
[1773325463930,0.002,2072.8,2072.0,1.2065637]
[1773325464223,0.002,2072.8,2072.1,1.454]
[1773325464805,0.002,2072.8,2071.9,1.67181321]
[1773325465125,0.002,2072.8,2072.0,1.454]
[1773325465324,0.002,2072.8,2072.1,1.7189931]
[1773325465531,0.002,2072.8,2072.2,0.46422742]
[1773325466020,0.002,2072.8,2072.2,1.91822742]
[1773325467120,0.002,2072.8,2072.2,1.96648531]
[1773325467311,0.002,2072.8,2072.3,1.20638903]
[1773325467512,0.002,2072.8,2072.3,1.67061645]
[1773325467909,0.002,2073.0,2072.4,0.46422742]
[1773325469210,0.002,2072.6,2072.4,0.46422742]
[1773325469410,0.002,2072.6,2072.3,0.001]
[1773325469716,0.49808114,2072.6,2072.0,0.001]
[1773325469919,0.002,2072.6,2072.0,1.20756193]
[1773325470120,0.002,2072.6,2072.1,0.51248763]
[1773325470748,0.002,2072.6,2072.2,0.46422742]
[1773325471040,0.002,2072.6,2072.3,1.50125556]
[1773325471299,0.002,2072.6,2072.0,4.25983934]
[1773325471442,0.002,2072.6,2072.4,2.65932391]
[1773325472547,0.002,2072.8,2072.4,3.12355133]
[1773325472719,0.002,2072.8,2072.2,4.82570089]
[1773325472919,0.002,2072.8,2072.0,1.20755649]
[1773325473122,0.49808114,2072.8,2072.1,1.453]
[1773325473429,1.20615622,2072.7,2072.1,1.453]
[1773325473629,1.20615622,2072.7,2072.1,1.454]
[1773325473822,1.20615622,2072.7,2072.1,1.50226021]
[1773325474031,1.20810402,2072.8,2072.2,0.46422742]